[Event "GER-chT Youth Countries 2020"]
[Site "Berlin"]
[Date "2020.10.04"]
[Round "7"]
[White "Hommer, Jeremy"]
[Black "Schwartz, Oliver"]
[Result "1-0"]
[ECO "B31"]
[WhiteElo "2246"]
[BlackElo "1794"]
[Annotator "ChessBase"]
[PlyCount "55"]
[EventDate "2020.09.30"]
[EventType "team-tourn"]
[EventRounds "7"]
[EventCountry "GER"]
[SourceTitle "playchess.com"]
[Source "ChessBase"]
[SourceQuality "1"]
[TimeControl "30/5400+30:0"]

1. e4 {[%emt 0:00:00]} c5 {[%emt 0:00:00]} 2. Nf3 {[%emt 0:00:00]} Nc6 {[%emt 0:00:00]} 3. Bb5 {[%emt 0:00:00]} g6 {[%emt 0:00:00]} 4. O-O {[%emt 0:00:06]} Bg7 {[%emt 0:00:00]} 5. c3 {[%emt 0:00:07]} Nf6 {[%emt 0:00:10]} 6. Re1 {[%emt 0:00:15]} O-O {[%emt 0:00:32]} 7. d4 {[%emt 0:00:54]} d5 {[%emt 0:01:41]} 8. e5 {[%emt 0:07:12]} Ne4 {[%emt 0:02:14]} 9. Nbd2 {[%emt 0:10:50]} cxd4 {[%emt 0:02:35]} 10. cxd4 {[%emt 0:01:28]} Qb6 {[%emt 0:04:43]} 11. Bxc6 {[%emt 0:04:19]} Qxc6 {[%emt 0:00:40]} 12. Nb3 {[%emt 0:14:11]} Rd8 {[%emt 0:10:56]} 13. Bf4 {[%emt 0:01:28]} Bd7 {[%emt 0:12:56]} 14. Nfd2 {[%emt 0:04:48]} Nxd2 {[%emt 0:20:01]} 15. Qxd2 {[%emt 0:01:22]} Rac8 {[%emt 0:01:42]} 16. Rac1 {[%emt 0:01:23]} Qb5 {[%emt 0:08:56]} 17. h4 {[%emt 0:22:07]} Bf5 {[%emt 0:04:27]} 18. Qa5 {[%emt 0:05:40]} Qb6 19. Qa3 Bf8 {[%emt 0:08:40]} 20. Nc5 {[%emt 0:00:56]} Qb5 21. e6 {[%emt 0:05:30]} b6 {[%emt 0:06:10]} 22. Nd7 Bg7 {[%emt 0:05:31]} 23. exf7+ {[%emt 0:02:24]} Kxf7 {[%emt 0:00:02]} 24. Rxe7+ {[%emt 0:00:58]} Kg8 {[%emt 0:00:20]} 25. Rxg7+ {[%emt 0:00:08]} Kh8 {[%emt 0:02:16]} 26. Rxh7+ {[%emt 0:00:12]} Kxh7 {[%emt 0:00:24]} 27. Qe7+ {[%emt 0:00:07]} Kh8 {[%emt 0:00:11]} 28. Be5+ {[%emt 0:00:10]} 1-0

[Event "GER-chT Youth Countries 2020"]
[Site "Berlin"]
[Date "2020.10.04"]
[Round "7"]
[White "Costa, Leonardo"]
[Black "Fock, Amina"]
[Result "1-0"]
[ECO "B93"]
[WhiteElo "2245"]
[BlackElo "1840"]
[Annotator "ChessBase"]
[PlyCount "109"]
[EventDate "2020.09.30"]
[EventType "team-tourn"]
[EventRounds "7"]
[EventCountry "GER"]
[SourceTitle "playchess.com"]
[Source "ChessBase"]
[SourceQuality "1"]
[TimeControl "30/5400+30:0"]

1. e4 {[%emt 0:01:54]} c5 {[%emt 0:00:00]} 2. Nf3 {[%emt 0:15:08]} d6 {[%emt 0:00:07]} 3. d4 {[%emt 0:00:03]} cxd4 {[%emt 0:00:05]} 4. Nxd4 {[%emt 0:00:03]} Nf6 {[%emt 0:00:10]} 5. Nc3 a6 {[%emt 0:00:05]} 6. f4 {[%emt 0:00:11]} e5 {[%emt 0:01:11]} 7. Nf3 {[%emt 0:00:04]} Qc7 {[%emt 0:06:53]} 8. Bd3 {[%emt 0:00:12]} Nbd7 {[%emt 0:02:24]} 9. O-O {[%emt 0:00:16]} Be7 {[%emt 0:00:32]} 10. Kh1 {[%emt 0:02:35]} O-O {[%emt 0:01:18]} 11. Qe2 {[%emt 0:02:08]} Nc5 {[%emt 0:01:53]} 12. fxe5 {[%emt 0:13:08]} dxe5 {[%emt 0:01:29]} 13. Bg5 {[%emt 0:00:14]} Nxd3 {[%emt 0:07:23]} 14. Bxf6 {[%emt 0:05:24]} Nf4 {[%emt 0:05:23]} 15. Bxe5 {[%emt 0:03:08]} Nxe2 {[%emt 0:05:31]} 16. Bxc7 {[%emt 0:00:08]} Nxc3 {[%emt 0:00:06]} 17. bxc3 {[%emt 0:00:04]} Be6 {[%emt 0:03:42]} 18. Nd4 {[%emt 0:07:59]} Bc4 {[%emt 0:01:12]} 19. Rfd1 {[%emt 0:12:26]} Ba3 {[%emt 0:06:39]} 20. Rab1 {[%emt 0:05:28]} b5 {[%emt 0:01:12]} 21. Nf5 {[%emt 0:00:20]} Ra7 {[%emt 0:07:36]} 22. Bd6 {[%emt 0:04:29]} Bxd6 {[%emt 0:00:26]} 23. Rxd6 {[%emt 0:00:13]} g6 {[%emt 0:02:54]} 24. Nd4 {[%emt 0:06:01]} Bxa2 {[%emt 0:08:28]} 25. Ra1 {[%emt 0:00:08]} Bc4 {[%emt 0:00:05]} 26. e5 {[%emt 0:02:34]} Re7 {[%emt 0:04:15]} 27. Nc6 {[%emt 0:00:19]} Re6 {[%emt 0:02:33]} 28. Kg1 {[%emt 0:03:52]} Ra8 {[%emt 0:04:38]} 29. Kf2 {[%emt 0:04:04]} Bd5 {[%emt 0:08:17]} 30. Nb4 {[%emt 0:01:31]} Rxd6 {[%emt 0:01:06]} 31. exd6 {[%emt 1:30:05]} Bb7 {[%emt 1:30:19]} 32. Nd3 {[%emt 0:02:42]} Rd8 {[%emt 0:03:55]} 33. Nc5 {[%emt 0:00:09]} Bc6 {[%emt 0:00:13]} 34. d7 {[%emt 0:01:15]} Kf8 {[%emt 0:01:13]} 35. Rxa6 {[%emt 0:00:05]} Bxd7 {[%emt 0:01:30]} 36. Rd6 {[%emt 0:01:23]} Ke7 {[%emt 0:00:33]} 37. Rxd7+ {[%emt 0:00:05]} Rxd7 {[%emt 0:00:08]} 38. Nxd7 {[%emt 0:00:03]} Kxd7 {[%emt 0:00:08]} 39. Ke3 {[%emt 0:00:03]} f5 {[%emt 0:03:22]} 40. Kd4 {[%emt 0:09:32]} Kd6 {[%emt 0:00:31]} 41. c4 {[%emt 0:00:00]} bxc4 {[%emt 0:00:00]} 42. Kxc4 {[%emt 0:00:00]} g5 {[%emt 0:00:00]} 43. Kd4 {[%emt 0:00:00]} h5 {[%emt 0:00:00]} 44. c3 {[%emt 0:00:00]} h4 {[%emt 0:00:00]} 45. c4 {[%emt 0:00:00]} g4 {[%emt 0:00:16]} 46. c5+ {[%emt 0:00:00]} Kc6 {[%emt 0:04:54]} 47. Ke5 {[%emt 0:00:00]} g3 {[%emt 0:00:39]} 48. hxg3 {[%emt 0:00:00]} hxg3 {[%emt 0:00:08]} 49. Kxf5 {[%emt 0:00:00]} Kxc5 {[%emt 0:04:46]} 50. Kf4 {[%emt 0:00:00]} Kd5 {[%emt 0:00:12]} 51. Kxg3 {[%emt 0:00:00]} Ke6 {[%emt 0:00:27]} 52. Kg4 {[%emt 0:00:00]} Ke5 {[%emt 0:01:15]} 53. Kh5 {[%emt 0:00:00]} Kf6 {[%emt 0:01:03]} 54. g4 {[%emt 0:00:00]} Kf7 {[%emt 0:01:34]} 55. Kh6 {[%emt 0:00:00]} 1-0

[Event "GER-chT Youth Countries 2020"]
[Site "Berlin"]
[Date "2020.10.04"]
[Round "7"]
[White "Hesse, Henrik"]
[Black "Goldbeck, Lars"]
[Result "1-0"]
[ECO "A13"]
[WhiteElo "2242"]
[BlackElo "2273"]
[Annotator "ChessBase"]
[PlyCount "151"]
[EventDate "2020.09.30"]
[EventType "team-tourn"]
[EventRounds "7"]
[EventCountry "GER"]
[SourceTitle "playchess.com"]
[Source "ChessBase"]
[SourceQuality "1"]
[TimeControl "30/5400+30:0"]

1. c4 {[%emt 0:00:00]} e6 {[%emt 0:00:08]} 2. g3 {[%emt 0:00:00]} d5 {[%emt 0:00:05]} 3. cxd5 {[%emt 0:01:31]} exd5 {[%emt 0:00:08]} 4. Bg2 {[%emt 0:00:11]} Nf6 {[%emt 0:00:13]} 5. Nf3 {[%emt 0:00:16]} Be7 {[%emt 0:00:28]} 6. O-O {[%emt 0:00:19]} O-O {[%emt 0:00:01]} 7. d4 {[%emt 0:01:24]} c6 {[%emt 0:11:26]} 8. Nc3 {[%emt 0:00:59]} Re8 {[%emt 0:01:00]} 9. Bf4 {[%emt 0:00:47]} Bf5 {[%emt 0:02:05]} 10. Rc1 {[%emt 0:00:32]} Nh5 {[%emt 0:02:55]} 11. Bd2 {[%emt 0:07:36]} Nd7 {[%emt 0:04:16]} 12. h3 {[%emt 0:10:35]} Nhf6 {[%emt 0:04:48]} 13. Nh4 {[%emt 0:05:26]} Be6 {[%emt 0:00:48]} 14. Qc2 {[%emt 0:09:27]} Nb6 {[%emt 0:07:25]} 15. Nf3 {[%emt 0:06:50]} Qc8 {[%emt 0:09:13]} 16. Kh2 {[%emt 0:17:06]} Nc4 {[%emt 0:03:19]} 17. Ne5 {[%emt 0:03:31]} Bf5 {[%emt 0:02:43]} 18. Qd1 {[%emt 0:01:26]} Nxd2 {[%emt 0:02:23]} 19. Qxd2 {[%emt 0:00:09]} Qb8 {[%emt 0:03:36]} 20. f4 {[%emt 0:06:27]} Nd7 {[%emt 0:08:02]} 21. e4 {[%emt 0:08:17]} dxe4 {[%emt 0:01:09]} 22. Nxe4 {[%emt 0:00:24]} Qd8 {[%emt 0:08:08]} 23. Rcd1 {[%emt 0:07:18]} Bf8 {[%emt 0:12:34]} 24. Rfe1 {[%emt 0:02:42]} Nb6 {[%emt 0:03:26]} 25. Qc3 {[%emt 0:03:31]} Nd5 {[%emt 0:01:24]} 26. Qb3 {[%emt 0:00:15]} Qb6 {[%emt 0:00:37]} 27. Qc4 {[%emt 0:01:20]} Qb4 {[%emt 0:01:54]} 28. Nc5 {[%emt 0:02:48]} Qxc4 {[%emt 0:01:09]} 29. Nxc4 {[%emt 0:00:02]} Rxe1 {[%emt 0:01:16]} 30. Rxe1 {[%emt 0:00:06]} b6 {[%emt 0:01:06]} 31. Nb3 {[%emt 1:32:25]} f6 {[%emt 1:31:24]} 32. a3 {[%emt 0:00:35]} Rd8 {[%emt 0:01:51]} 33. Ncd2 {[%emt 0:00:22]} h5 {[%emt 0:01:20]} 34. Rc1 {[%emt 0:00:14]} Bd7 {[%emt 0:00:42]} 35. Ne4 {[%emt 0:00:59]} h4 {[%emt 0:00:55]} 36. Nc3 {[%emt 0:00:35]} hxg3+ {[%emt 0:00:05]} 37. Kxg3 {[%emt 0:00:02]} Ne3 {[%emt 0:00:37]} 38. Bf3 {[%emt 0:00:52]} Nf5+ {[%emt 0:00:28]} 39. Kf2 {[%emt 0:00:41]} Bd6 {[%emt 0:00:43]} 40. Ne2 {[%emt 0:00:51]} Ne7 {[%emt 0:00:28]} 41. h4 {[%emt 0:00:00]} Nd5 {[%emt 0:00:00]} 42. Bxd5+ {[%emt 0:00:00]} cxd5 {[%emt 0:00:00]} 43. Kf3 {[%emt 0:00:00]} Kf7 {[%emt 0:00:00]} 44. Ng3 {[%emt 0:00:00]} g6 {[%emt 0:00:00]} 45. f5 {[%emt 0:00:00]} gxf5 {[%emt 0:00:00]} 46. Ne2 {[%emt 0:00:00]} Rg8 {[%emt 0:00:00]} 47. Rg1 {[%emt 0:00:00]} Rg4 {[%emt 0:00:00]} 48. Rh1 {[%emt 0:00:00]} Kg6 {[%emt 0:00:00]} 49. h5+ {[%emt 0:00:00]} Kh6 {[%emt 0:00:00]} 50. Nd2 {[%emt 0:01:30]} Bb5 {[%emt 0:00:01]} 51. Nf1 {[%emt 0:00:00]} Bd3 {[%emt 0:03:34]} 52. Nfg3 {[%emt 0:02:09]} Rg7 {[%emt 0:03:58]} 53. Rc1 {[%emt 0:03:07]} Be4+ {[%emt 0:00:27]} 54. Kf2 {[%emt 0:00:08]} f4 {[%emt 0:01:04]} 55. Nxe4 {[%emt 0:00:17]} dxe4 {[%emt 0:00:01]} 56. Rc6 {[%emt 0:00:06]} f3 {[%emt 0:01:13]} 57. Nc3 {[%emt 0:00:48]} Rg2+ {[%emt 0:01:07]} 58. Ke3 {[%emt 0:00:14]} Bf4+ {[%emt 0:00:43]} 59. Kxe4 {[%emt 0:01:11]} f2 {[%emt 0:00:24]} 60. Rxf6+ {[%emt 0:00:04]} Kxh5 {[%emt 0:00:29]} 61. Rxf4 {[%emt 1:30:09]} Rg4 {[%emt 1:30:02]} 62. Rxg4 {[%emt 0:00:07]} Kxg4 {[%emt 0:00:03]} 63. Nd1 {[%emt 0:00:01]} f1=N {[%emt 0:00:18]} 64. Ne3+ {[%emt 0:00:10]} Nxe3 {[%emt 0:00:07]} 65. Kxe3 {[%emt 0:00:03]} Kf5 {[%emt 0:00:04]} 66. b4 {[%emt 0:00:39]} b5 {[%emt 0:00:03]} 67. Kf3 {[%emt 0:00:05]} Kf6 {[%emt 0:00:14]} 68. Ke4 {[%emt 0:00:10]} Ke6 {[%emt 0:00:00]} 69. d5+ {[%emt 0:00:09]} Kd6 {[%emt 0:00:01]} 70. Kd4 {[%emt 0:00:05]} a6 {[%emt 0:00:20]} 71. Ke4 {[%emt 0:00:04]} Kd7 {[%emt 0:00:03]} 72. Ke5 {[%emt 0:00:03]} Ke7 {[%emt 0:00:03]} 73. d6+ {[%emt 0:00:08]} Kd7 {[%emt 0:00:00]} 74. Kd5 {[%emt 0:00:04]} Kd8 {[%emt 0:00:05]} 75. Kc6 {[%emt 0:00:06]} Kc8 {[%emt 0:00:01]} 76. Kb6 {[%emt 0:00:12]} 1-0

[Event "GER-chT Youth Countries 2020"]
[Site "Berlin"]
[Date "2020.10.04"]
[Round "7"]
[White "Maetzkow, Maximilian Paul"]
[Black "Kolb, Tobias"]
[Result "1/2-1/2"]
[ECO "D00"]
[WhiteElo "2242"]
[BlackElo "2268"]
[Annotator "ChessBase"]
[PlyCount "69"]
[EventDate "2020.09.30"]
[EventType "team-tourn"]
[EventRounds "7"]
[EventCountry "GER"]
[SourceTitle "playchess.com"]
[Source "ChessBase"]
[SourceQuality "1"]
[TimeControl "30/5400+30:0"]

1. d4 {[%emt 0:00:00]} d5 {[%emt 0:00:00]} 2. Nc3 {[%emt 0:00:00]} Nf6 {[%emt 0:00:02]} 3. Bf4 {[%emt 0:00:00]} Bf5 {[%emt 0:00:21]} 4. f3 {[%emt 0:00:05]} e6 {[%emt 0:00:18]} 5. g4 {[%emt 0:00:04]} Bg6 {[%emt 0:00:04]} 6. h4 {[%emt 0:00:04]} h5 {[%emt 0:05:04]} 7. g5 {[%emt 0:00:05]} Nfd7 {[%emt 0:00:38]} 8. e3 {[%emt 0:00:07]} Nc6 {[%emt 0:16:44]} 9. Bd3 {[%emt 0:01:42]} Bxd3 {[%emt 0:00:11]} 10. cxd3 {[%emt 0:00:27]} Nb6 {[%emt 0:04:46]} 11. Nge2 {[%emt 0:01:43]} Bd6 {[%emt 0:03:41]} 12. Qb3 {[%emt 0:26:23]} Qd7 {[%emt 0:11:48]} 13. O-O-O {[%emt 0:05:16]} O-O-O {[%emt 0:00:42]} 14. Bxd6 {[%emt 0:02:03]} Qxd6 {[%emt 0:00:17]} 15. f4 {[%emt 0:01:11]} Kb8 {[%emt 0:09:40]} 16. Kb1 {[%emt 0:01:14]} a6 {[%emt 0:01:39]} 17. Rc1 {[%emt 0:01:12]} f6 {[%emt 0:02:58]} 18. Na4 {[%emt 0:03:34]} Nxa4 {[%emt 0:01:44]} 19. Qxa4 {[%emt 0:00:07]} Ne7 {[%emt 0:03:25]} 20. e4 {[%emt 0:14:32]} dxe4 {[%emt 0:01:16]} 21. dxe4 {[%emt 0:00:10]} f5 {[%emt 0:00:04]} 22. e5 {[%emt 0:02:11]} Qd5 {[%emt 0:04:21]} 23. Ka1 {[%emt 0:10:18]} Rd7 {[%emt 0:04:01]} 24. Rh3 {[%emt 0:04:15]} Qb5 {[%emt 0:13:27]} 25. Qc2 {[%emt 0:01:36]} Rhd8 {[%emt 0:01:50]} 26. Rb3 {[%emt 0:00:29]} Qd5 {[%emt 0:00:03]} 27. Rc3 {[%emt 0:01:14]} Qa5 {[%emt 0:01:57]} 28. Ra3 {[%emt 0:00:36]} Qd5 {[%emt 0:01:12]} 29. Rc3 {[%emt 0:00:07]} Nc6 {[%emt 0:04:33]} 30. Rc5 {[%emt 0:01:32]} Nxd4 {[%emt 0:04:03]} 31. Nxd4 {[%emt 1:36:05]} Qxd4 {[%emt 1:30:04]} 32. Rxc7 {[%emt 0:00:04]} Qxf4 {[%emt 0:00:07]} 33. Rc8+ Rxc8 {[%emt 0:00:11]} 34. Qxc8+ {[%emt 0:01:10]} Ka7 {[%emt 0:00:04]} 35. Qc5+ {[%emt 0:00:51]} 1/2-1/2

[Event "GER-chT Youth Countries 2020"]
[Site "Berlin"]
[Date "2020.10.04"]
[Round "7"]
[White "Post, Hugo"]
[Black "Runte, Moritz"]
[Result "1-0"]
[ECO "B38"]
[WhiteElo "2209"]
[BlackElo "2114"]
[Annotator "ChessBase"]
[PlyCount "37"]
[EventDate "2020.09.30"]
[EventType "team-tourn"]
[EventRounds "7"]
[EventCountry "GER"]
[SourceTitle "playchess.com"]
[Source "ChessBase"]
[SourceQuality "1"]
[TimeControl "30/5400+30:0"]

1. e4 {[%emt 0:00:00]} c5 {[%emt 0:00:00]} 2. Nf3 {[%emt 0:00:00]} g6 {[%emt 0:00:00]} 3. d4 {[%emt 0:01:34]} cxd4 {[%emt 0:00:38]} 4. Nxd4 {[%emt 0:00:51]} Bg7 {[%emt 0:00:29]} 5. c4 {[%emt 0:00:08]} Nc6 {[%emt 0:00:33]} 6. Be3 {[%emt 0:00:06]} Nf6 {[%emt 0:00:41]} 7. Nc3 O-O 8. Be2 {[%emt 0:00:37]} d6 {[%emt 0:00:47]} 9. f3 {[%emt 0:08:55]} e6 {[%emt 0:20:45]} 10. Ndb5 {[%emt 0:02:47]} d5 {[%emt 0:00:49]} 11. cxd5 {[%emt 0:00:24]} exd5 {[%emt 0:13:26]} 12. exd5 {[%emt 0:03:44]} a6 {[%emt 0:01:20]} 13. dxc6 axb5 {[%emt 0:00:05]} 14. Qxd8 {[%emt 0:01:24]} Rxd8 {[%emt 0:11:26]} 15. Bxb5 {[%emt 0:12:01]} Nd5 {[%emt 0:06:52]} 16. O-O-O {[%emt 0:13:42]} Bxc3 {[%emt 0:13:32]} 17. c7 {[%emt 0:00:12]} Rd6 {[%emt 0:07:24]} 18. bxc3 {[%emt 0:03:13]} Rxa2 19. Bc5 1-0

[Event "GER-chT Youth Countries 2020"]
[Site "Berlin"]
[Date "2020.10.04"]
[Round "7"]
[White "Matthes, Aaron"]
[Black "Weishaeutel, Moritz"]
[Result "0-1"]
[ECO "A40"]
[WhiteElo "2198"]
[BlackElo "2222"]
[Annotator "ChessBase"]
[PlyCount "46"]
[EventDate "2020.09.30"]
[EventType "team-tourn"]
[EventRounds "7"]
[EventCountry "GER"]
[SourceTitle "playchess.com"]
[Source "ChessBase"]
[SourceQuality "1"]
[TimeControl "30/5400+30:0"]

1. d4 Nf6 2. c4 {[%emt 0:00:00]} e6 {[%emt 0:00:23]} 3. g3 {[%emt 0:06:33]} c5 {[%emt 0:00:41]} 4. Nf3 {[%emt 0:02:12]} cxd4 {[%emt 0:00:24]} 5. Nxd4 {[%emt 0:03:13]} d5 {[%emt 0:01:19]} 6. Bg2 {[%emt 0:01:50]} e5 {[%emt 0:02:45]} 7. Nf3 {[%emt 0:01:19]} d4 {[%emt 0:00:58]} 8. O-O {[%emt 0:01:43]} Nc6 {[%emt 0:00:43]} 9. e3 {[%emt 0:03:34]} Be7 {[%emt 0:03:13]} 10. exd4 {[%emt 0:07:18]} exd4 {[%emt 0:00:06]} 11. Bf4 {[%emt 0:00:23]} Be6 {[%emt 0:06:49]} 12. Nbd2 {[%emt 0:08:20]} O-O {[%emt 0:11:43]} 13. Ne5 {[%emt 0:02:11]} Rc8 {[%emt 0:01:55]} 14. b3 {[%emt 0:00:30]} Qb6 {[%emt 0:00:30]} 15. Ne4 {[%emt 0:00:30]} Rcd8 {[%emt 0:00:30]} 16. Nxc6 {[%emt 0:00:30]} bxc6 {[%emt 0:00:30]} 17. Bg5 {[%emt 0:12:22]} d3 {[%emt 0:31:20]} 18. Nxf6+ {[%emt 0:05:34]} Bxf6 {[%emt 0:00:11]} 19. Bxf6 {[%emt 0:00:05]} gxf6 {[%emt 0:00:03]} 20. Qf3 {[%emt 0:05:16]} Qd4 {[%emt 0:01:27]} 21. Qxc6 {[%emt 0:01:28]} d2 {[%emt 0:00:57]} 22. Bf3 {[%emt 0:01:20]} Bh3 {[%emt 0:03:38]} 23. Rfd1 {[%emt 0:00:09]} Qxa1 {[%emt 0:08:20]} 0-1

[Event "GER-chT Youth Countries 2020"]
[Site "Berlin"]
[Date "2020.10.04"]
[Round "7"]
[White "Fromm, Marius"]
[Black "Jeschke, Jan"]
[Result "1/2-1/2"]
[ECO "C18"]
[WhiteElo "2190"]
[BlackElo "2043"]
[Annotator "ChessBase"]
[PlyCount "98"]
[EventDate "2020.09.30"]
[EventType "team-tourn"]
[EventRounds "7"]
[EventCountry "GER"]
[SourceTitle "playchess.com"]
[Source "ChessBase"]
[SourceQuality "1"]
[TimeControl "30/5400+30:0"]

1. e4 {[%emt 0:00:00]} e6 {[%emt 0:00:00]} 2. d4 {[%emt 0:00:00]} d5 {[%emt 0:00:00]} 3. Nc3 {[%emt 0:00:00]} Bb4 {[%emt 0:00:21]} 4. e5 {[%emt 0:00:00]} c5 {[%emt 0:00:38]} 5. a3 {[%emt 0:00:00]} Bxc3+ {[%emt 0:00:08]} 6. bxc3 {[%emt 0:00:02]} Ne7 {[%emt 0:00:43]} 7. Qg4 {[%emt 0:00:09]} Qc7 {[%emt 0:00:38]} 8. Qxg7 {[%emt 0:00:08]} Rg8 {[%emt 0:00:10]} 9. Qxh7 {[%emt 0:00:04]} cxd4 {[%emt 0:00:33]} 10. Qd3 {[%emt 0:00:11]} dxc3 {[%emt 0:08:33]} 11. Ne2 {[%emt 0:01:36]} Qxe5 {[%emt 0:00:41]} 12. Qxc3 {[%emt 0:00:11]} Qxc3+ {[%emt 0:00:14]} 13. Nxc3 {[%emt 0:00:05]} e5 {[%emt 0:01:21]} 14. Rb1 {[%emt 0:00:35]} Nbc6 {[%emt 0:01:37]} 15. h4 {[%emt 0:00:09]} b6 {[%emt 0:08:42]} 16. Nb5 {[%emt 0:01:34]} Kd7 {[%emt 0:00:16]} 17. h5 {[%emt 0:15:18]} Bb7 {[%emt 0:08:04]} 18. f3 {[%emt 0:27:33]} Rac8 {[%emt 0:09:49]} 19. a4 {[%emt 0:08:17]} Nf5 {[%emt 0:14:19]} 20. Bd3 {[%emt 0:05:54]} e4 {[%emt 0:00:48]} 21. fxe4 {[%emt 0:03:11]} dxe4 {[%emt 0:03:13]} 22. Bxe4 {[%emt 0:07:47]} Rce8 {[%emt 0:10:17]} 23. O-O {[%emt 0:00:25]} Rxe4 {[%emt 0:00:13]} 24. Rxf5 {[%emt 0:00:20]} Ne7 {[%emt 0:12:21]} 25. Rf2 {[%emt 0:01:13]} Re1+ {[%emt 0:02:00]} 26. Kh2 {[%emt 0:00:04]} Nf5 {[%emt 0:01:04]} 27. Ra1 {[%emt 0:04:55]} Rg4 {[%emt 0:00:28]} 28. Rd2+ {[%emt 0:08:13]} Kc8 {[%emt 0:00:16]} 29. Ra3 {[%emt 0:00:08]} Rh4+ {[%emt 0:05:47]} 30. Rh3 {[%emt 0:00:04]} Rxh3+ {[%emt 0:00:13]} 31. Kxh3 {[%emt 1:30:04]} Rxc1 {[%emt 1:30:49]} 32. Nxa7+ {[%emt 0:01:38]} Kb8 {[%emt 0:00:56]} 33. Nb5 {[%emt 0:00:06]} Bc8 {[%emt 0:02:59]} 34. Kg4 {[%emt 0:03:10]} f6 {[%emt 0:00:33]} 35. Rd8 {[%emt 0:00:58]} Ng7+ {[%emt 0:02:24]} 36. Kf3 {[%emt 0:01:06]} Nxh5 {[%emt 0:00:29]} 37. Rg8 {[%emt 0:03:52]} Rf1+ {[%emt 0:03:33]} 38. Ke2 {[%emt 0:02:13]} Rf5 {[%emt 0:01:00]} 39. Rxc8+ {[%emt 0:00:07]} Kxc8 {[%emt 0:00:04]} 40. Nd6+ {[%emt 0:00:05]} Kd7 {[%emt 0:00:34]} 41. Nxf5 {[%emt 0:00:05]} Nf4+ {[%emt 0:01:22]} 42. Kf3 {[%emt 0:02:25]} Nd5 {[%emt 0:01:28]} 43. Ng7 {[%emt 0:00:00]} Ke7 {[%emt 0:00:00]} 44. Ke4 {[%emt 0:00:00]} Nc3+ {[%emt 0:00:00]} 45. Kf5 {[%emt 0:00:00]} Nd5 {[%emt 0:00:00]} 46. Ke4 {[%emt 0:00:00]} Nc3+ {[%emt 0:00:00]} 47. Kd4 {[%emt 0:00:00]} Nxa4 {[%emt 0:00:00]} 48. Kc4 {[%emt 0:00:00]} Nb2+ {[%emt 0:00:00]} 49. Kb5 {[%emt 0:00:00]} Nd1 {[%emt 0:00:00]} 1/2-1/2